[Event "Titled Tuesday Blitz May 24 Late 2022"]
[White "Bortnyk, Olexandr"]
[Black "Kamsky, Gata"]
[WhiteFideId "14120828"]
[BlackFideId "2000024"]
[WhiteElo "2723"]
[BlackElo "2645"]
[Result "1-0"]
[Round "07"]
[TimeControl "180+1"]
[Date "2022.05.24"]
[WhiteClock "0:00:28"]
[BlackClock "0:00:22"]

1. d4 {[%clk 0:02:54]}  d5 {[%clk 0:02:59]} 2. Nc3 {[%clk 0:02:54]}  Nf6 {[%clk 0:02:58]} 3. Bf4 {[%clk 0:02:55]}  Bf5 {[%clk 0:02:55]} 4. e3 {[%clk 0:02:55]}  e6 {[%clk 0:02:54]} 5. Nf3 {[%clk 0:02:54]}  a6 {[%clk 0:02:53]} 6. Ne5 {[%clk 0:02:54]}  h5 {[%clk 0:02:31]} 7. Bd3 {[%clk 0:02:52]}  Nbd7 {[%clk 0:02:12]} 8. Bxf5 {[%clk 0:02:51]}  exf5 {[%clk 0:02:11]} 9. Bg5 {[%clk 0:02:45]}  Be7 {[%clk 0:02:02]} 10. Qf3 {[%clk 0:02:41]}  Nxe5 {[%clk 0:01:30]} 11. dxe5 {[%clk 0:02:42]}  Ne4 {[%clk 0:01:26]} 12. Bxe7 {[%clk 0:02:35]}  Qxe7 {[%clk 0:01:25]} 13. Qxf5 {[%clk 0:02:19]}  g6 {[%clk 0:01:20]} 14. Qf4 {[%clk 0:02:06]}  Nxc3 {[%clk 0:01:20]} 15. bxc3 {[%clk 0:02:06]}  O-O {[%clk 0:01:14]} 16. Qd4 {[%clk 0:02:01]}  c6 {[%clk 0:01:10]} 17. O-O {[%clk 0:01:58]}  Rae8 {[%clk 0:01:09]} 18. Rab1 {[%clk 0:01:52]}  b5 {[%clk 0:01:06]} 19. f4 {[%clk 0:01:49]}  f6 {[%clk 0:01:05]} 20. Qd3 {[%clk 0:01:43]}  Kg7 {[%clk 0:01:01]} 21. exf6+ {[%clk 0:01:40]}  Rxf6 {[%clk 0:01:00]} 22. Rf3 {[%clk 0:01:40]}  Qc5 {[%clk 0:00:40]} 23. Qd4 {[%clk 0:01:34]}  Qa3 {[%clk 0:00:27]} 24. f5 {[%clk 0:01:02]}  Re4 {[%clk 0:00:26]} 25. Qb6 {[%clk 0:00:55]}  Qe7 {[%clk 0:00:24]} 26. Rg3 {[%clk 0:00:29]}  c5 {[%clk 0:00:22]} 27. Rxg6+ {[%clk 0:00:28]} 1-0


[Site "https://www.chess.com"]

[Event "Titled Tuesday Blitz May 24 Late 2022"]
[White "Colivet Gamboa, Julio Cesar"]
[Black "Miszler, Levente"]
[WhiteFideId "3949583"]
[BlackFideId "763276"]
[WhiteElo "1743"]
[BlackElo "1966"]
[Result "1-0"]
[Round "07"]
[TimeControl "180+1"]
[Date "2022.05.25"]
[WhiteClock "0:00:51"]
[BlackClock "0:00:05"]

1. c4 {[%clk 0:03:00]}  e5 {[%clk 0:02:57]} 2. Nc3 {[%clk 0:03:01]}  Nc6 {[%clk 0:02:57]} 3. g3 {[%clk 0:03:01]}  g6 {[%clk 0:02:58]} 4. Bg2 {[%clk 0:03:01]}  Bg7 {[%clk 0:02:58]} 5. e4 {[%clk 0:03:01]}  Nd4 {[%clk 0:02:57]} 6. Nge2 {[%clk 0:03:01]}  Ne7 {[%clk 0:02:57]} 7. O-O {[%clk 0:03:01]}  Nec6 {[%clk 0:02:57]} 8. d3 {[%clk 0:03:00]}  O-O {[%clk 0:02:57]} 9. f4 {[%clk 0:02:59]}  d6 {[%clk 0:02:57]} 10. h3 {[%clk 0:02:59]}  f5 {[%clk 0:02:56]} 11. Be3 {[%clk 0:02:59]}  Bd7 {[%clk 0:02:46]} 12. Qd2 {[%clk 0:02:56]}  a5 {[%clk 0:02:43]} 13. Kh2 {[%clk 0:02:54]}  Qe7 {[%clk 0:02:38]} 14. Nd5 {[%clk 0:02:52]}  Qd8 {[%clk 0:02:35]} 15. Nec3 {[%clk 0:02:48]}  Ne7 {[%clk 0:02:34]} 16. Nxe7+ {[%clk 0:02:44]}  Qxe7 {[%clk 0:02:35]} 17. exf5 {[%clk 0:02:38]}  Nxf5 {[%clk 0:02:32]} 18. Bxb7 {[%clk 0:02:36]}  Rab8 {[%clk 0:02:28]} 19. Bg2 {[%clk 0:02:36]}  Nxe3 {[%clk 0:02:25]} 20. Qxe3 {[%clk 0:02:32]}  Rxb2 {[%clk 0:02:25]} 21. Rab1 {[%clk 0:02:25]}  Rfb8 {[%clk 0:02:20]} 22. Rxb2 {[%clk 0:02:22]}  Rxb2 {[%clk 0:02:20]} 23. Kh1 {[%clk 0:02:16]}  Qe8 {[%clk 0:01:52]} 24. fxe5 {[%clk 0:02:09]}  Bxe5 {[%clk 0:01:48]} 25. Bd5+ {[%clk 0:02:03]}  Kg7 {[%clk 0:01:47]} 26. Rf7+ {[%clk 0:02:03]}  Qxf7 {[%clk 0:01:44]} 27. Bxf7 {[%clk 0:02:02]}  Kxf7 {[%clk 0:01:43]} 28. d4 {[%clk 0:01:58]}  Bc6+ {[%clk 0:01:39]} 29. Nd5 {[%clk 0:01:44]}  Bf6 {[%clk 0:01:20]} 30. Qf3 {[%clk 0:01:27]}  Bxd5 {[%clk 0:01:14]} 31. Qxd5+ {[%clk 0:01:27]}  Kg7 {[%clk 0:01:12]} 32. c5 {[%clk 0:01:24]}  dxc5 {[%clk 0:01:07]} 33. dxc5 {[%clk 0:01:25]}  Rb1+ {[%clk 0:00:57]} 34. Kg2 {[%clk 0:01:22]}  Rb2+ {[%clk 0:00:57]} 35. Kf3 {[%clk 0:01:22]}  Kf8 {[%clk 0:00:40]} 36. c6 {[%clk 0:01:19]}  Rc2 {[%clk 0:00:28]} 37. Qe6 {[%clk 0:01:11]}  Rc3+ {[%clk 0:00:21]} 38. Ke2 {[%clk 0:00:57]}  Rc2+ {[%clk 0:00:10]} 39. Kd3 {[%clk 0:00:54]}  Rc3+ {[%clk 0:00:10]} 40. Kd2 {[%clk 0:00:52]}  Rc5 {[%clk 0:00:05]} 41. Qxf6+ {[%clk 0:00:51]}  Ke8 {[%clk 0:00:03]} 42. Qe6+ {[%clk 0:00:51]}  Kf8 {[%clk 0:00:04]} 43. Qc8+ {[%clk 0:00:50]}  Kf7 {[%clk 0:00:04]} 44. Qxc7+ {[%clk 0:00:51]}  Ke6 {[%clk 0:00:05]} 45. Qd7+ {[%clk 0:00:51]} 1-0


[Site "https://www.chess.com"]

[Event "Titled Tuesday Blitz May 24 Late 2022"]
[White "D`Arruda, Ricardo D."]
[Black "Barria Zuniga, Daniel"]
[WhiteFideId "100692"]
[BlackFideId "3400816"]
[WhiteElo "2494"]
[BlackElo "2414"]
[Result "1-0"]
[Round "07"]
[TimeControl "180+1"]
[Date "2022.05.25"]
[WhiteClock "0:01:10"]
[BlackClock "0:00:35"]

1. d4 {[%clk 0:02:45]}  f5 {[%clk 0:02:55]} 2. c3 {[%clk 0:02:43]}  Nf6 {[%clk 0:02:55]} 3. Nd2 {[%clk 0:02:43]}  g6 {[%clk 0:02:55]} 4. Ngf3 {[%clk 0:02:43]}  Bg7 {[%clk 0:02:55]} 5. g3 {[%clk 0:02:43]}  O-O {[%clk 0:02:54]} 6. Bg2 {[%clk 0:02:43]}  d6 {[%clk 0:02:54]} 7. O-O {[%clk 0:02:44]}  Nc6 {[%clk 0:02:53]} 8. d5 {[%clk 0:02:42]}  Nxd5 {[%clk 0:02:49]} 9. Qb3 {[%clk 0:02:33]}  e6 {[%clk 0:02:47]} 10. e4 {[%clk 0:02:31]}  Nb6 {[%clk 0:02:30]} 11. exf5 {[%clk 0:02:23]}  gxf5 {[%clk 0:02:31]} 12. a4 {[%clk 0:02:22]}  a5 {[%clk 0:02:23]} 13. Re1 {[%clk 0:02:18]}  Kh8 {[%clk 0:02:22]} 14. Nc4 {[%clk 0:02:18]}  Nd5 {[%clk 0:02:07]} 15. Bg5 {[%clk 0:02:16]}  Qd7 {[%clk 0:02:07]} 16. Rad1 {[%clk 0:02:15]}  h6 {[%clk 0:02:00]} 17. Bc1 {[%clk 0:02:14]}  Nce7 {[%clk 0:01:38]} 18. Nd4 {[%clk 0:02:10]}  e5 {[%clk 0:01:30]} 19. Nb5 {[%clk 0:02:02]}  e4 {[%clk 0:01:29]} 20. f3 {[%clk 0:01:59]}  c6 {[%clk 0:01:22]} 21. Nbxd6 {[%clk 0:01:55]}  b5 {[%clk 0:01:20]} 22. axb5 {[%clk 0:01:51]}  a4 {[%clk 0:01:20]} 23. Qa2 {[%clk 0:01:45]}  cxb5 {[%clk 0:01:20]} 24. Nxc8 {[%clk 0:01:45]}  Raxc8 {[%clk 0:01:16]} 25. Ne3 {[%clk 0:01:42]}  Qa7 {[%clk 0:01:04]} 26. Rxd5 {[%clk 0:01:40]}  Nxd5 {[%clk 0:01:04]} 27. Qxd5 {[%clk 0:01:41]}  a3 {[%clk 0:01:00]} 28. bxa3 {[%clk 0:01:24]}  Rxc3 {[%clk 0:00:58]} 29. Bd2 {[%clk 0:01:17]}  Rd3 {[%clk 0:00:52]} 30. Qa2 {[%clk 0:01:17]}  Bd4 {[%clk 0:00:45]} 31. Qe6 {[%clk 0:01:10]}  Bxe3+ {[%clk 0:00:42]} 32. Bxe3 {[%clk 0:01:08]}  Rxe3 {[%clk 0:00:42]} 33. Qxh6+ {[%clk 0:01:09]}  Kg8 {[%clk 0:00:35]} 34. Qxe3 {[%clk 0:01:10]} 1-0


[Site "https://www.chess.com"]

[Event "Titled Tuesday Blitz May 24 Late 2022"]
[White "Francisco Guecamburu, Candela Be"]
[Black "De Souza, Regis Gabetta"]
[WhiteFideId "160911"]
[BlackFideId "22756930"]
[WhiteElo "1847"]
[BlackElo "1926"]
[Result "1-0"]
[Round "07"]
[TimeControl "180+1"]
[Date "2022.05.25"]
[WhiteClock "0:00:46"]
[BlackClock "0:00:11"]

1. e4 {[%clk 0:03:00]}  e5 {[%clk 0:03:00]} 2. Nf3 {[%clk 0:03:00]}  Nc6 {[%clk 0:03:00]} 3. Bb5 {[%clk 0:03:01]}  a6 {[%clk 0:02:59]} 4. Ba4 {[%clk 0:03:01]}  g6 {[%clk 0:02:59]} 5. O-O {[%clk 0:03:00]}  Bg7 {[%clk 0:02:59]} 6. Re1 {[%clk 0:03:00]}  Nge7 {[%clk 0:02:59]} 7. d3 {[%clk 0:02:56]}  O-O {[%clk 0:02:59]} 8. Bg5 {[%clk 0:02:55]}  h6 {[%clk 0:02:58]} 9. Bh4 {[%clk 0:02:54]}  g5 {[%clk 0:02:51]} 10. Bg3 {[%clk 0:02:53]}  d6 {[%clk 0:02:51]} 11. c3 {[%clk 0:02:50]}  b5 {[%clk 0:02:49]} 12. Bc2 {[%clk 0:02:49]}  f5 {[%clk 0:02:41]} 13. exf5 {[%clk 0:02:48]}  Nxf5 {[%clk 0:02:42]} 14. Nbd2 {[%clk 0:02:43]}  Nce7 {[%clk 0:02:41]} 15. d4 {[%clk 0:02:38]}  exd4 {[%clk 0:02:37]} 16. cxd4 {[%clk 0:02:38]}  Nxd4 {[%clk 0:02:11]} 17. Nxd4 {[%clk 0:02:28]}  Bxd4 {[%clk 0:02:12]} 18. Qh5 {[%clk 0:01:52]}  Bg7 {[%clk 0:01:51]} 19. Nf3 {[%clk 0:01:50]}  Bf5 {[%clk 0:01:45]} 20. Bb3+ {[%clk 0:01:47]}  d5 {[%clk 0:01:35]} 21. Be5 {[%clk 0:01:30]}  c6 {[%clk 0:01:28]} 22. Nd4 {[%clk 0:01:23]}  Bg6 {[%clk 0:01:23]} 23. Qh3 {[%clk 0:01:20]}  Rf7 {[%clk 0:00:32]} 24. Ne6 {[%clk 0:01:12]}  Qd7 {[%clk 0:00:21]} 25. Bxg7 {[%clk 0:01:01]}  Nf5 {[%clk 0:00:12]} 26. Bc3 {[%clk 0:00:48]}  Re8 {[%clk 0:00:12]} 27. Nc5 {[%clk 0:00:47]}  Qd6 {[%clk 0:00:11]} 28. Rxe8+ {[%clk 0:00:46]} 1-0


[Site "https://www.chess.com"]

[Event "Titled Tuesday Blitz May 24 Late 2022"]
[White "Gatterer, Florian"]
[Black "Jarocka, Liwia"]
[WhiteFideId "811688"]
[BlackFideId "21807558"]
[WhiteElo "2218"]
[BlackElo "1887"]
[Result "1-0"]
[Round "07"]
[TimeControl "180+1"]
[Date "2022.05.25"]
[WhiteClock "0:00:51"]
[BlackClock "0:00:54"]

1. f4 {[%clk 0:03:00]}  c5 {[%clk 0:02:59]} 2. Nf3 {[%clk 0:02:58]}  d5 {[%clk 0:02:58]} 3. g3 {[%clk 0:02:58]}  Nc6 {[%clk 0:02:57]} 4. Bg2 {[%clk 0:02:58]}  g6 {[%clk 0:02:58]} 5. O-O {[%clk 0:02:58]}  Bg7 {[%clk 0:02:58]} 6. d3 {[%clk 0:02:58]}  Nf6 {[%clk 0:02:58]} 7. Ne5 {[%clk 0:02:57]}  O-O {[%clk 0:02:58]} 8. Nxc6 {[%clk 0:02:56]}  bxc6 {[%clk 0:02:58]} 9. e4 {[%clk 0:02:56]}  Ne8 {[%clk 0:02:52]} 10. c4 {[%clk 0:02:52]}  Nc7 {[%clk 0:02:51]} 11. Nc3 {[%clk 0:02:47]}  dxc4 {[%clk 0:02:41]} 12. dxc4 {[%clk 0:02:45]}  Bxc3 {[%clk 0:02:36]} 13. bxc3 {[%clk 0:02:43]}  Ba6 {[%clk 0:02:36]} 14. Qa4 {[%clk 0:02:35]}  Qd3 {[%clk 0:02:20]} 15. Qa5 {[%clk 0:02:20]}  Rac8 {[%clk 0:02:18]} 16. Ba3 {[%clk 0:02:18]}  Qxc4 {[%clk 0:02:11]} 17. Bxc5 {[%clk 0:02:07]}  Rfd8 {[%clk 0:02:10]} 18. Rfd1 {[%clk 0:02:00]}  e6 {[%clk 0:01:58]} 19. Bxa7 {[%clk 0:01:47]}  Rxd1+ {[%clk 0:01:57]} 20. Rxd1 {[%clk 0:01:46]}  Bb5 {[%clk 0:01:51]} 21. Bf2 {[%clk 0:01:37]}  Ne8 {[%clk 0:01:31]} 22. h3 {[%clk 0:01:18]}  Nf6 {[%clk 0:01:19]} 23. Rd8+ {[%clk 0:01:14]}  Kg7 {[%clk 0:01:04]} 24. Rxc8 {[%clk 0:01:09]}  Nxe4 {[%clk 0:01:03]} 25. Bd4+ {[%clk 0:01:00]}  Kh6 {[%clk 0:00:59]} 26. Qd8 {[%clk 0:00:51]}  Nxg3 {[%clk 0:00:54]} 1-0


[Site "https://www.chess.com"]

[Event "Titled Tuesday Blitz May 24 Late 2022"]
[White "Golubev, Mikhail"]
[Black "Kohler, Aran"]
[WhiteFideId "14100983"]
[BlackFideId "1002856"]
[WhiteElo "2374"]
[BlackElo "2262"]
[Result "1-0"]
[Round "07"]
[TimeControl "180+1"]
[Date "2022.05.25"]
[WhiteClock "0:01:43"]
[BlackClock "0:01:35"]

1. e4 {[%clk 0:03:00]}  e5 {[%clk 0:02:55]} 2. Nf3 {[%clk 0:03:00]}  Nc6 {[%clk 0:02:56]} 3. Bb5 {[%clk 0:03:00]}  Nf6 {[%clk 0:02:56]} 4. O-O {[%clk 0:02:58]}  Nxe4 {[%clk 0:02:56]} 5. Re1 {[%clk 0:02:56]}  Nd6 {[%clk 0:02:57]} 6. Bf1 {[%clk 0:02:55]}  Be7 {[%clk 0:02:52]} 7. Nc3 {[%clk 0:02:54]}  O-O {[%clk 0:02:49]} 8. d4 {[%clk 0:02:49]}  exd4 {[%clk 0:02:47]} 9. Nd5 {[%clk 0:02:46]}  Bf6 {[%clk 0:02:45]} 10. Bf4 {[%clk 0:02:30]}  Nf5 {[%clk 0:02:37]} 11. Bxc7 {[%clk 0:02:27]}  d3 {[%clk 0:02:18]} 12. Bxd8 {[%clk 0:02:22]}  Bxb2 {[%clk 0:02:05]} 13. Bxd3 {[%clk 0:02:16]}  Bxa1 {[%clk 0:02:02]} 14. Bxf5 {[%clk 0:02:12]}  Nxd8 {[%clk 0:01:54]} 15. Qxa1 {[%clk 0:02:10]}  Ne6 {[%clk 0:01:54]} 16. Ne7+ {[%clk 0:02:04]}  Kh8 {[%clk 0:01:53]} 17. Qe5 {[%clk 0:01:55]}  f6 {[%clk 0:01:44]} 18. Qd6 {[%clk 0:01:51]}  Rf7 {[%clk 0:01:39]} 19. Bxe6 {[%clk 0:01:49]}  Rxe7 {[%clk 0:01:34]} 20. Qxe7 {[%clk 0:01:47]}  dxe6 {[%clk 0:01:35]} 21. Qe8# {[%clk 0:01:43]} 1-0


[Site "https://www.chess.com"]

[Event "Titled Tuesday Blitz May 24 Late 2022"]
[White "Griffith, Kyron"]
[Black "Keymer, Vincent"]
[WhiteFideId "2046318"]
[BlackFideId "12940690"]
[WhiteElo "2232"]
[BlackElo "2548"]
[Result "1-0"]
[Round "07"]
[TimeControl "180+1"]
[Date "2022.05.24"]
[WhiteClock "0:00:05"]
[BlackClock "0:00:07"]

1. e4 {[%clk 0:03:00]}  c6 {[%clk 0:02:59]} 2. d4 {[%clk 0:03:00]}  d5 {[%clk 0:03:00]} 3. Nc3 {[%clk 0:03:01]}  dxe4 {[%clk 0:03:01]} 4. Nxe4 {[%clk 0:03:02]}  Nf6 {[%clk 0:03:01]} 5. Nxf6+ {[%clk 0:03:02]}  exf6 {[%clk 0:03:02]} 6. c3 {[%clk 0:03:02]}  Bd6 {[%clk 0:03:03]} 7. Bd3 {[%clk 0:03:03]}  O-O {[%clk 0:03:03]} 8. Qc2 {[%clk 0:03:03]}  Re8+ {[%clk 0:03:04]} 9. Ne2 {[%clk 0:03:03]}  h5 {[%clk 0:03:05]} 10. O-O {[%clk 0:03:04]}  h4 {[%clk 0:03:05]} 11. h3 {[%clk 0:03:03]}  Nd7 {[%clk 0:03:05]} 12. Bd2 {[%clk 0:03:03]}  Nf8 {[%clk 0:03:06]} 13. Rae1 {[%clk 0:03:04]}  Bd7 {[%clk 0:03:06]} 14. f4 {[%clk 0:03:00]}  g6 {[%clk 0:03:06]} 15. f5 {[%clk 0:02:57]}  g5 {[%clk 0:03:05]} 16. Qd1 {[%clk 0:02:57]}  Nh7 {[%clk 0:02:46]} 17. b3 {[%clk 0:02:24]}  Rc8 {[%clk 0:02:37]} 18. c4 {[%clk 0:02:16]}  c5 {[%clk 0:02:31]} 19. d5 {[%clk 0:02:15]}  Bb8 {[%clk 0:02:31]} 20. a4 {[%clk 0:01:23]}  Qc7 {[%clk 0:02:27]} 21. Nf4 {[%clk 0:01:19]}  gxf4 {[%clk 0:01:53]} 22. Rxe8+ {[%clk 0:01:10]}  Rxe8 {[%clk 0:01:53]} 23. Bxf4 {[%clk 0:00:59]}  Qxf4 {[%clk 0:01:35]} 24. Rxf4 {[%clk 0:00:57]}  Bxf4 {[%clk 0:01:36]} 25. Qg4+ {[%clk 0:00:48]}  Bg5 {[%clk 0:01:36]} 26. Be4 {[%clk 0:00:42]}  Kh8 {[%clk 0:01:25]} 27. d6 {[%clk 0:00:42]}  b6 {[%clk 0:01:21]} 28. Bd5 {[%clk 0:00:38]}  Re1+ {[%clk 0:01:18]} 29. Kf2 {[%clk 0:00:38]}  Re5 {[%clk 0:01:18]} 30. Qh5 {[%clk 0:00:29]}  Rxf5+ {[%clk 0:01:00]} 31. Ke2 {[%clk 0:00:29]}  Re5+ {[%clk 0:00:56]} 32. Kd1 {[%clk 0:00:23]}  Rxd5+ {[%clk 0:00:30]} 33. cxd5 {[%clk 0:00:22]}  Kg7 {[%clk 0:00:30]} 34. Qe2 {[%clk 0:00:19]}  Nf8 {[%clk 0:00:27]} 35. Qa6 {[%clk 0:00:19]}  Ng6 {[%clk 0:00:17]} 36. Qxa7 {[%clk 0:00:19]}  Ne5 {[%clk 0:00:17]} 37. Qxb6 {[%clk 0:00:18]}  c4 {[%clk 0:00:18]} 38. bxc4 {[%clk 0:00:16]}  Bxa4+ {[%clk 0:00:17]} 39. Ke2 {[%clk 0:00:14]}  Nxc4 {[%clk 0:00:05]} 40. Qb4 {[%clk 0:00:11]}  Nxd6 {[%clk 0:00:05]} 41. Qxd6 {[%clk 0:00:07]}  Bb5+ {[%clk 0:00:04]} 42. Kf2 {[%clk 0:00:06]}  Bd3 {[%clk 0:00:03]} 43. Qd8 {[%clk 0:00:03]}  Bf4 {[%clk 0:00:03]} 44. d6 {[%clk 0:00:03]}  Bg3+ {[%clk 0:00:03]} 45. Ke3 {[%clk 0:00:03]}  Bb5 {[%clk 0:00:03]} 46. d7 {[%clk 0:00:03]}  Be5 {[%clk 0:00:03]} 47. Qc8 {[%clk 0:00:02]}  Bxd7 {[%clk 0:00:02]} 48. Qxd7 {[%clk 0:00:03]}  Bg3 {[%clk 0:00:03]} 49. Kf3 {[%clk 0:00:03]}  Kg6 {[%clk 0:00:03]} 50. Kg4 {[%clk 0:00:03]}  f5+ {[%clk 0:00:04]} 51. Qxf5+ {[%clk 0:00:03]}  Kg7 {[%clk 0:00:05]} 52. Kh5 {[%clk 0:00:04]}  Kf8 {[%clk 0:00:06]} 53. Qd7 {[%clk 0:00:03]}  Kg7 {[%clk 0:00:06]} 54. Kg4 {[%clk 0:00:04]}  Bf2 {[%clk 0:00:06]} 55. Kf5 {[%clk 0:00:04]}  Bg3 {[%clk 0:00:07]} 56. Qc6 {[%clk 0:00:04]}  Bf2 {[%clk 0:00:07]} 57. Qe4 {[%clk 0:00:04]}  Bg3 {[%clk 0:00:07]} 58. Qg4+ {[%clk 0:00:04]}  Kf8 {[%clk 0:00:07]} 59. Kf6 {[%clk 0:00:05]}  Bf2 {[%clk 0:00:07]} 60. Qc8# {[%clk 0:00:05]} 1-0


[Site "https://www.chess.com"]

[Event "Titled Tuesday Blitz May 24 Late 2022"]
[White "Grischuk, Alexander"]
[Black "Dubov, Daniil"]
[WhiteFideId "4126025"]
[BlackFideId "24126055"]
[WhiteElo "2762"]
[BlackElo "2791"]
[Result "1/2-1/2"]
[Round "07"]
[TimeControl "180+1"]
[Date "2022.05.24"]
[WhiteClock "0:00:05"]
[BlackClock "0:00:05"]

1. d4 {[%clk 0:03:00]}  Nf6 {[%clk 0:02:58]} 2. c4 {[%clk 0:03:01]}  e6 {[%clk 0:02:58]} 3. Nc3 {[%clk 0:03:00]}  d5 {[%clk 0:02:58]} 4. cxd5 {[%clk 0:03:00]}  exd5 {[%clk 0:02:58]} 5. Bg5 {[%clk 0:02:59]}  c6 {[%clk 0:02:58]} 6. Qc2 {[%clk 0:02:56]}  h6 {[%clk 0:02:57]} 7. Bh4 {[%clk 0:02:56]}  Be7 {[%clk 0:02:57]} 8. e3 {[%clk 0:02:55]}  O-O {[%clk 0:02:57]} 9. Bd3 {[%clk 0:02:55]}  Re8 {[%clk 0:02:57]} 10. Nge2 {[%clk 0:02:55]}  Nbd7 {[%clk 0:02:56]} 11. O-O {[%clk 0:02:52]}  Nh5 {[%clk 0:02:54]} 12. Bxe7 {[%clk 0:02:52]}  Qxe7 {[%clk 0:02:55]} 13. Rae1 {[%clk 0:02:50]}  Nb6 {[%clk 0:02:51]} 14. Nc1 {[%clk 0:02:49]}  g6 {[%clk 0:02:46]} 15. Nb3 {[%clk 0:02:39]}  Ng7 {[%clk 0:02:32]} 16. f3 {[%clk 0:02:37]}  Be6 {[%clk 0:02:29]} 17. Nc5 {[%clk 0:02:31]}  Rad8 {[%clk 0:02:27]} 18. Qf2 {[%clk 0:02:30]}  Bc8 {[%clk 0:02:25]} 19. e4 {[%clk 0:02:22]}  dxe4 {[%clk 0:02:23]} 20. fxe4 {[%clk 0:02:22]}  Ne6 {[%clk 0:02:10]} 21. Nxe6 {[%clk 0:01:48]}  Bxe6 {[%clk 0:02:09]} 22. e5 {[%clk 0:01:49]}  Qd7 {[%clk 0:01:45]} 23. Ne4 {[%clk 0:01:19]}  Qxd4 {[%clk 0:01:41]} 24. Nf6+ {[%clk 0:01:20]}  Kf8 {[%clk 0:01:41]} 25. Nxe8 {[%clk 0:01:15]}  Kxe8 {[%clk 0:01:36]} 26. Bb1 {[%clk 0:01:06]}  Nc4 {[%clk 0:01:30]} 27. Qxd4 {[%clk 0:00:45]}  Rxd4 {[%clk 0:01:28]} 28. Rf2 {[%clk 0:00:46]}  a5 {[%clk 0:01:19]} 29. h3 {[%clk 0:00:44]}  a4 {[%clk 0:01:08]} 30. a3 {[%clk 0:00:43]}  Ke7 {[%clk 0:01:06]} 31. Kh2 {[%clk 0:00:40]}  b5 {[%clk 0:01:01]} 32. Re4 {[%clk 0:00:28]}  Rxe4 {[%clk 0:00:56]} 33. Bxe4 {[%clk 0:00:28]}  Nxe5 {[%clk 0:00:57]} 34. g4 {[%clk 0:00:26]}  Kd6 {[%clk 0:00:46]} 35. Kg3 {[%clk 0:00:26]}  g5 {[%clk 0:00:44]} 36. Rc2 {[%clk 0:00:09]}  Nc4 {[%clk 0:00:33]} 37. Kf2 {[%clk 0:00:07]}  c5 {[%clk 0:00:31]} 38. Bd3 {[%clk 0:00:07]}  Ke5 {[%clk 0:00:26]} 39. Bxc4 {[%clk 0:00:07]}  Bxc4 {[%clk 0:00:26]} 40. Ke3 {[%clk 0:00:08]}  f5 {[%clk 0:00:23]} 41. gxf5 {[%clk 0:00:09]}  Kxf5 {[%clk 0:00:23]} 42. Rf2+ {[%clk 0:00:08]}  Ke5 {[%clk 0:00:17]} 43. Rf8 {[%clk 0:00:09]}  Be6 {[%clk 0:00:16]} 44. Rh8 {[%clk 0:00:05]}  Bxh3 {[%clk 0:00:15]} 45. Rxh6 {[%clk 0:00:06]}  Be6 {[%clk 0:00:16]} 46. Rg6 {[%clk 0:00:05]}  g4 {[%clk 0:00:14]} 47. Rg7 {[%clk 0:00:05]}  Kd5 {[%clk 0:00:13]} 48. Rg6 {[%clk 0:00:04]}  Bf5 {[%clk 0:00:11]} 49. Rg5 {[%clk 0:00:05]}  Ke5 {[%clk 0:00:11]} 50. Rg7 {[%clk 0:00:05]}  Kd5 {[%clk 0:00:11]} 51. Rg5 {[%clk 0:00:05]}  Ke5 {[%clk 0:00:10]} 52. Rg7 {[%clk 0:00:05]}  Kd5 {[%clk 0:00:05]} 53. Rg5 {[%clk 0:00:05]} 1/2-1/2


[Site "https://www.chess.com"]

[Event "Titled Tuesday Blitz May 24 Late 2022"]
[White "Haas, Michael"]
[Black "Malka, Samuel"]
[WhiteFideId "1629514"]
[BlackFideId "20643675"]
[WhiteElo "1982"]
[BlackElo "2478"]
[Result "0-1"]
[Round "07"]
[TimeControl "180+1"]
[Date "2022.05.25"]
[WhiteClock "0:00:01"]
[BlackClock "0:00:31"]

1. d4 {[%clk 0:03:00]}  Nf6 {[%clk 0:02:59]} 2. c4 {[%clk 0:03:00]}  e6 {[%clk 0:02:52]} 3. g3 {[%clk 0:03:00]}  c5 {[%clk 0:02:49]} 4. d5 {[%clk 0:02:58]}  exd5 {[%clk 0:02:49]} 5. cxd5 {[%clk 0:02:59]}  d6 {[%clk 0:02:49]} 6. Nc3 {[%clk 0:02:55]}  g6 {[%clk 0:02:50]} 7. Bg2 {[%clk 0:02:55]}  Bg7 {[%clk 0:02:50]} 8. Nf3 {[%clk 0:02:56]}  O-O {[%clk 0:02:50]} 9. O-O {[%clk 0:02:56]}  Re8 {[%clk 0:02:51]} 10. Bf4 {[%clk 0:02:55]}  Bf5 {[%clk 0:02:42]} 11. Nd2 {[%clk 0:02:35]}  Nh5 {[%clk 0:02:23]} 12. e4 {[%clk 0:02:34]}  Nxf4 {[%clk 0:02:21]} 13. gxf4 {[%clk 0:02:35]}  Bc8 {[%clk 0:02:18]} 14. Re1 {[%clk 0:02:27]}  Qh4 {[%clk 0:02:06]} 15. e5 {[%clk 0:01:35]}  Bf5 {[%clk 0:01:40]} 16. exd6 {[%clk 0:01:23]}  Nd7 {[%clk 0:01:39]} 17. Qf3 {[%clk 0:01:07]}  a6 {[%clk 0:01:26]} 18. a4 {[%clk 0:01:00]}  Qf6 {[%clk 0:01:04]} 19. Nc4 {[%clk 0:00:37]}  Qd4 {[%clk 0:01:04]} 20. Ne3 {[%clk 0:00:28]}  Qb4 {[%clk 0:00:52]} 21. Nxf5 {[%clk 0:00:28]}  gxf5 {[%clk 0:00:53]} 22. Qg3 {[%clk 0:00:15]}  Kh8 {[%clk 0:00:51]} 23. Kh1 {[%clk 0:00:08]}  Qxb2 {[%clk 0:00:51]} 24. Rac1 {[%clk 0:00:05]}  Rxe1+ {[%clk 0:00:48]} 25. Rxe1 {[%clk 0:00:05]}  Qxc3 {[%clk 0:00:47]} 26. Rg1 {[%clk 0:00:05]}  Rg8 {[%clk 0:00:45]} 27. Bf3 {[%clk 0:00:05]}  Qf6 {[%clk 0:00:42]} 28. Qh3 {[%clk 0:00:04]}  Bh6 {[%clk 0:00:36]} 29. Re1 {[%clk 0:00:04]}  Bxf4 {[%clk 0:00:32]} 30. Bg2 {[%clk 0:00:03]}  Bxd6 {[%clk 0:00:31]} 31. Re3 {[%clk 0:00:02]}  Ne5 {[%clk 0:00:31]} 32. Bf1 {[%clk 0:00:02]}  Ng4 {[%clk 0:00:31]} 33. Rg3 {[%clk 0:00:01]}  Nxf2+ {[%clk 0:00:31]} 0-1


[Site "https://www.chess.com"]